Workbook

Sheet 入围名单
A1: 附件
A2: 黎平县2024年“特岗计划” 教师招聘入围体检人员名单
A3: 序号 | B3: 姓名 | C3: 面试准考证 | D3: 报考县 | E3: 报考学段 | F3: 报考学科 | G3: 笔试成绩 | H3: 笔试成绩所占比例 | I3: 面试成绩 | J3: 面试成绩所占比例 | K3: 综合成绩 | L3: 本职位排名 | M3: 是否入围体检
A4: 1 | B4: 向骆 | C4: 2024313010101 | D4: 黎平县 | E4: 初中 | F4: 道德与法治 | G4: 75.50 | H4: 50% | I4: 82.33 | J4: 50% | K4: =ROUND(G4/2+I4/2,2) -> 78.92 | L4: 1 | M4: 是
A5: 2 | B5: 张海飞 | C5: 2024313010102 | D5: 黎平县 | E5: 初中 | F5: 道德与法治 | G5: 73.00 | H5: 50% | I5: 83.33 | J5: 50% | K5: 78.17 | L5: 2 | M5: 是
A6: 3 | B6: 吴良方 | C6: 2024313010103 | D6: 黎平县 | E6: 初中 | F6: 道德与法治 | G6: 71.00 | H6: 50% | I6: 82.67 | J6: 50% | K6: 76.84 | L6: 3 | M6: 是
A7: 4 | B7: 肖佳敏 | C7: 2024313010106 | D7: 黎平县 | E7: 初中 | F7: 道德与法治 | G7: 68.00 | H7: 50% | I7: 84.33 | J7: 50% | K7: 76.17 | L7: 4 | M7: 是
A8: 5 | B8: 杨海荣 | C8: 2024313010110 | D8: 黎平县 | E8: 初中 | F8: 道德与法治 | G8: 65.00 | H8: 50% | I8: 86.33 | J8: 50% | K8: 75.67 | L8: 5 | M8: 否
A9: 6 | B9: 陈金云 | C9: 2024313010105 | D9: 黎平县 | E9: 初中 | F9: 道德与法治 | G9: 68.50 | H9: 50% | I9: 82.67 | J9: 50% | K9: 75.59 | L9: 6 | M9: 否
A10: 7 | B10: 陆雪丽 | C10: 2024313010104 | D10: 黎平县 | E10: 初中 | F10: 道德与法治 | G10: 70.00 | H10: 50% | I10: 80.33 | J10: 50% | K10: 75.17 | L10: 7 | M10: 否
A11: 8 | B11: 冯银银 | C11: 2024313010107 | D11: 黎平县 | E11: 初中 | F11: 道德与法治 | G11: 68.00 | H11: 50% | I11: 81.00 | J11: 50% | K11: 74.50 | L11: 8 | M11: 否
A12: 9 | B12: 程德妮 | C12: 2024313010108 | D12: 黎平县 | E12: 初中 | F12: 道德与法治 | G12: 66.00 | H12: 50% | I12: 82.33 | J12: 50% | K12: 74.17 | L12: 9 | M12: 否
A13: 10 | B13: 杨芳 | C13: 2024313010109 | D13: 黎平县 | E13: 初中 | F13: 道德与法治 | G13: 65.00 | H13: 50% | I13: 80.33 | J13: 50% | K13: 72.67 | L13: 10 | M13: 否
A14: 11 | B14: 吴开霞 | C14: 2024313010111 | D14: 黎平县 | E14: 初中 | F14: 道德与法治 | G14: 64.00 | H14: 50% | I14: 81.00 | J14: 50% | K14: 72.50 | L14: 11 | M14: 否
A15: 12 | B15: 宋海海 | C15: 2024313010113 | D15: 黎平县 | E15: 初中 | F15: 道德与法治 | G15: 63.50 | H15: 50% | I15: 78.33 | J15: 50% | K15: 70.92 | L15: 12 | M15: 否
A16: 13 | B16: 夏菜韦 | C16: 2024313010112 | D16: 黎平县 | E16: 初中 | F16: 道德与法治 | G16: 63.50 | H16: 50% | I16: 68.67 | J16: 50% | K16: 66.09 | L16: 13 | M16: 否
A17: 14 | B17: 雷鹏梅 | C17: 2024312010114 | D17: 黎平县 | E17: 小学 | F17: 道德与法治 | G17: 80.50 | H17: 50% | I17: 84.67 | J17: 50% | K17: 82.59 | L17: 1 | M17: 是
A18: 15 | B18: 杨明娥 | C18: 2024312010115 | D18: 黎平县 | E18: 小学 | F18: 道德与法治 | G18: 78.50 | H18: 50% | I18: 84.33 | J18: 50% | K18: 81.42 | L18: 2 | M18: 是
A19: 16 | B19: 吴书婷 | C19: 2024312010116 | D19: 黎平县 | E19: 小学 | F19: 道德与法治 | G19: 71.50 | H19: 50% | I19: 84.33 | J19: 50% | K19: 77.92 | L19: 3 | M19: 是
A20: 17 | B20: 杨丽丹 | C20: 2024312010117 | D20: 黎平县 | E20: 小学 | F20: 道德与法治 | G20: 69.00 | H20: 50% | I20: 85.00 | J20: 50% | K20: 77.00 | L20: 4 | M20: 是
A21: 18 | B21: 张秀娟 | C21: 2024312010119 | D21: 黎平县 | E21: 小学 | F21: 道德与法治 | G21: 66.50 | H21: 50% | I21: 86.00 | J21: 50% | K21: 76.25 | L21: 5 | M21: 是
A22: 19 | B22: 杨艳琪 | C22: 2024312010123 | D22: 黎平县 | E22: 小学 | F22: 道德与法治 | G22: 65.00 | H22: 50% | I22: 85.67 | J22: 50% | K22: 75.34 | L22: 6 | M22: 是
A23: 20 | B23: 李胜男 | C23: 2024312010124 | D23: 黎平县 | E23: 小学 | F23: 道德与法治 | G23: 64.50 | H23: 50% | I23: 86.00 | J23: 50% | K23: 75.25 | L23: 7 | M23: 是
A24: 21 | B24: 吴德俐 | C24: 2024312010122 | D24: 黎平县 | E24: 小学 | F24: 道德与法治 | G24: 65.50 | H24: 50% | I24: 84.67 | J24: 50% | K24: 75.09 | L24: 8 | M24: 否
A25: 22 | B25: 李玉岑 | C25: 2024312010118 | D25: 黎平县 | E25: 小学 | F25: 道德与法治 | G25: 68.50 | H25: 50% | I25: 81.33 | J25: 50% | K25: 74.92 | L25: 9 | M25: 否
A26: 23 | B26: 欧礼芬 | C26: 2024312010120 | D26: 黎平县 | E26: 小学 | F26: 道德与法治 | G26: 66.00 | H26: 50% | I26: 83.67 | J26: 50% | K26: 74.84 | L26: 10 | M26: 否
A27: 24 | B27: 田昌红 | C27: 2024312010121 | D27: 黎平县 | E27: 小学 | F27: 道德与法治 | G27: 66.00 | H27: 50% | I27: 83.00 | J27: 50% | K27: 74.50 | L27: 11 | M27: 否
A28: 25 | B28: 石红爱 | C28: 2024312010125 | D28: 黎平县 | E28: 小学 | F28: 道德与法治 | G28: 63.00 | H28: 50% | I28: 86.00 | J28: 50% | K28: 74.50 | L28: 11 | M28: 否
A29: 26 | B29: 王丹莲 | C29: 2024312010126 | D29: 黎平县 | E29: 小学 | F29: 道德与法治 | G29: 62.50 | H29: 50% | I29: 84.67 | J29: 50% | K29: 73.59 | L29: 13 | M29: 否
A30: 27 | B30: 杨光连 | C30: 2024312010127 | D30: 黎平县 | E30: 小学 | F30: 道德与法治 | G30: 62.00 | H30: 50% | I30: 82.67 | J30: 50% | K30: 72.34 | L30: 14 | M30: 否
A31: 28 | B31: 龙太勇 | C31: 2024312010131 | D31: 黎平县 | E31: 小学 | F31: 道德与法治 | G31: 59.50 | H31: 50% | I31: 85.00 | J31: 50% | K31: 72.25 | L31: 15 | M31: 否
A32: 29 | B32: 姜二妹 | C32: 2024312010128 | D32: 黎平县 | E32: 小学 | F32: 道德与法治 | G32: 61.50 | H32: 50% | I32: 82.67 | J32: 50% | K32: 72.09 | L32: 16 | M32: 否
A33: 30 | B33: 朱铖婷 | C33: 2024312010129 | D33: 黎平县 | E33: 小学 | F33: 道德与法治 | G33: 61.50 | H33: 50% | I33: 82.67 | J33: 50% | K33: 72.09 | L33: 16 | M33: 否
A34: 31 | B34: 石兰昌 | C34: 2024312010132 | D34: 黎平县 | E34: 小学 | F34: 道德与法治 | G34: 59.50 | H34: 50% | I34: 83.67 | J34: 50% | K34: 71.59 | L34: 18 | M34: 否
A35: 32 | B35: 吴宇萱 | C35: 2024312010134 | D35: 黎平县 | E35: 小学 | F35: 道德与法治 | G35: 58.00 | H35: 50% | I35: 84.67 | J35: 50% | K35: 71.34 | L35: 19 | M35: 否
A36: 33 | B36: 姜菲菲 | C36: 2024312010133 | D36: 黎平县 | E36: 小学 | F36: 道德与法治 | G36: 59.00 | H36: 50% | I36: 83.00 | J36: 50% | K36: 71.00 | L36: 20 | M36: 否
A37: 34 | B37: 石生 | C37: 2024312010130 | D37: 黎平县 | E37: 小学 | F37: 道德与法治 | G37: 60.00 | H37: 50% | I37: 81.00 | J37: 50% | K37: 70.50 | L37: 21 | M37: 否
A38: 35 | B38: 韦念香 | C38: 2024312010135 | D38: 黎平县 | E38: 小学 | F38: 道德与法治 | G38: 58.00 | H38: 50% | I38: 缺考 | J38: —— | K38: —— | M38: 否
A39: 36 | B39: 杨晶晶 | C39: 2024312020201 | D39: 黎平县 | E39: 小学 | F39: 语文 | G39: 85.00 | H39: 50% | I39: 86.67 | J39: 50% | K39: =ROUND(G39/2+I39/2,2) -> 85.84 | L39: 1 | M39: 是
A40: 37 | B40: 徐米 | C40: 2024312020202 | D40: 黎平县 | E40: 小学 | F40: 语文 | G40: 81.00 | H40: 50% | I40: 86.33 | J40: 50% | K40: 83.67 | L40: 2 | M40: 是
A41: 38 | B41: 袁柳单 | C41: 2024312020210 | D41: 黎平县 | E41: 小学 | F41: 语文 | G41: 77.50 | H41: 50% | I41: 88.33 | J41: 50% | K41: 82.92 | L41: 3 | M41: 是
A42: 39 | B42: 欧正艳 | C42: 2024312020203 | D42: 黎平县 | E42: 小学 | F42: 语文 | G42: 80.50 | H42: 50% | I42: 84.00 | J42: 50% | K42: 82.25 | L42: 4 | M42: 是
A43: 40 | B43: 陆秋溶 | C43: 2024312020217 | D43: 黎平县 | E43: 小学 | F43: 语文 | G43: 76.50 | H43: 50% | I43: 87.83 | J43: 50% | K43: 82.17 | L43: 5 | M43: 是
A44: 41 | B44: 吴先环 | C44: 2024312020207 | D44: 黎平县 | E44: 小学 | F44: 语文 | G44: 79.00 | H44: 50% | I44: 85.17 | J44: 50% | K44: 82.09 | L44: 6 | M44: 是
A45: 42 | B45: 王顺伟 | C45: 2024312020206 | D45: 黎平县 | E45: 小学 | F45: 语文 | G45: 79.50 | H45: 50% | I45: 84.00 | J45: 50% | K45: 81.75 | L45: 7 | M45: 是
A46: 43 | B46: 龙婕 | C46: 2024312020213 | D46: 黎平县 | E46: 小学 | F46: 语文 | G46: 77.00 | H46: 50% | I46: 86.50 | J46: 50% | K46: 81.75 | L46: 7 | M46: 是
A47: 44 | B47: 杨爱云 | C47: 2024312020209 | D47: 黎平县 | E47: 小学 | F47: 语文 | G47: 77.50 | H47: 50% | I47: 85.67 | J47: 50% | K47: 81.59 | L47: 9 | M47: 是
A48: 45 | B48: 李梅 | C48: 2024312020205 | D48: 黎平县 | E48: 小学 | F48: 语文 | G48: 80.00 | H48: 50% | I48: 83.00 | J48: 50% | K48: 81.50 | L48: 10 | M48: 是
A49: 46 | B49: 钟永丽 | C49: 2024312020219 | D49: 黎平县 | E49: 小学 | F49: 语文 | G49: 76.00 | H49: 50% | I49: 87.00 | J49: 50% | K49: 81.50 | L49: 10 | M49: 是
A50: 47 | B50: 吴元梅 | C50: 2024312020211 | D50: 黎平县 | E50: 小学 | F50: 语文 | G50: 77.00 | H50: 50% | I50: 85.67 | J50: 50% | K50: 81.34 | L50: 12 | M50: 是
A51: 48 | B51: 李岸芋 | C51: 2024312020216 | D51: 黎平县 | E51: 小学 | F51: 语文 | G51: 76.50 | H51: 50% | I51: 86.00 | J51: 50% | K51: 81.25 | L51: 13 | M51: 是
A52: 49 | B52: 吴永媛 | C52: 2024312020218 | D52: 黎平县 | E52: 小学 | F52: 语文 | G52: 76.00 | H52: 50% | I52: 85.67 | J52: 50% | K52: 80.84 | L52: 14 | M52: 是
A53: 50 | B53: 黄桃桃 | C53: 2024312020204 | D53: 黎平县 | E53: 小学 | F53: 语文 | G53: 80.50 | H53: 50% | I53: 81.00 | J53: 50% | K53: 80.75 | L53: 15 | M53: 是
A54: 51 | B54: 符倩倩 | C54: 2024312020214 | D54: 黎平县 | E54: 小学 | F54: 语文 | G54: 77.00 | H54: 50% | I54: 84.33 | J54: 50% | K54: 80.67 | L54: 16 | M54: 是
A55: 52 | B55: 龙甜 | C55: 2024312020212 | D55: 黎平县 | E55: 小学 | F55: 语文 | G55: 77.00 | H55: 50% | I55: 84.33 | J55: 50% | K55: 80.67 | L55: 16 | M55: 否
A56: 53 | B56: 杨妹九 | C56: 2024312020220 | D56: 黎平县 | E56: 小学 | F56: 语文 | G56: 76.00 | H56: 50% | I56: 85.33 | J56: 50% | K56: 80.67 | L56: 16 | M56: 否
A57: 54 | B57: 杨明丽 | C57: 2024312020231 | D57: 黎平县 | E57: 小学 | F57: 语文 | G57: 73.50 | H57: 50% | I57: 87.83 | J57: 50% | K57: 80.67 | L57: 16 | M57: 否
A58: 55 | B58: 曾红龄 | C58: 2024312020221 | D58: 黎平县 | E58: 小学 | F58: 语文 | G58: 75.00 | H58: 50% | I58: 85.67 | J58: 50% | K58: 80.34 | L58: 20 | M58: 否
A59: 56 | B59: 甘明珠 | C59: 2024312020239 | D59: 黎平县 | E59: 小学 | F59: 语文 | G59: 71.50 | H59: 50% | I59: 89.00 | J59: 50% | K59: 80.25 | L59: 21 | M59: 否
A60: 57 | B60: 杨映梅 | C60: 2024312020225 | D60: 黎平县 | E60: 小学 | F60: 语文 | G60: 74.00 | H60: 50% | I60: 86.33 | J60: 50% | K60: 80.17 | L60: 22 | M60: 否
A61: 58 | B61: 王亚贤 | C61: 2024312020229 | D61: 黎平县 | E61: 小学 | F61: 语文 | G61: 73.50 | H61: 50% | I61: 86.33 | J61: 50% | K61: 79.92 | L61: 23 | M61: 否
A62: 59 | B62: 黄冰冰 | C62: 2024312020223 | D62: 黎平县 | E62: 小学 | F62: 语文 | G62: 74.50 | H62: 50% | I62: 85.00 | J62: 50% | K62: 79.75 | L62: 24 | M62: 否
A63: 60 | B63: 王敏 | C63: 2024312020230 | D63: 黎平县 | E63: 小学 | F63: 语文 | G63: 73.50 | H63: 50% | I63: 85.33 | J63: 50% | K63: 79.42 | L63: 25 | M63: 否
A64: 61 | B64: 吴敏 | C64: 2024312020243 | D64: 黎平县 | E64: 小学 | F64: 语文 | G64: 70.50 | H64: 50% | I64: 88.33 | J64: 50% | K64: 79.42 | L64: 25 | M64: 否
A65: 62 | B65: 吴彩红 | C65: 2024312020208 | D65: 黎平县 | E65: 小学 | F65: 语文 | G65: 78.00 | H65: 50% | I65: 80.33 | J65: 50% | K65: 79.17 | L65: 27 | M65: 否
A66: 63 | B66: 杨先窕 | C66: 2024312020232 | D66: 黎平县 | E66: 小学 | F66: 语文 | G66: 73.00 | H66: 50% | I66: 85.33 | J66: 50% | K66: 79.17 | L66: 27 | M66: 否
A67: 64 | B67: 杨云 | C67: 2024312020224 | D67: 黎平县 | E67: 小学 | F67: 语文 | G67: 74.50 | H67: 50% | I67: 83.67 | J67: 50% | K67: 79.09 | L67: 29 | M67: 否
A68: 65 | B68: 杨温馨 | C68: 2024312020238 | D68: 黎平县 | E68: 小学 | F68: 语文 | G68: 71.50 | H68: 50% | I68: 86.67 | J68: 50% | K68: 79.09 | L68: 29 | M68: 否
A69: 66 | B69: 周俭梅 | C69: 2024312020215 | D69: 黎平县 | E69: 小学 | F69: 语文 | G69: 77.00 | H69: 50% | I69: 80.67 | J69: 50% | K69: 78.84 | L69: 31 | M69: 否
A70: 67 | B70: 任红梅 | C70: 2024312020235 | D70: 黎平县 | E70: 小学 | F70: 语文 | G70: 73.00 | H70: 50% | I70: 84.67 | J70: 50% | K70: 78.84 | L70: 31 | M70: 否
A71: 68 | B71: 王小芳 | C71: 2024312020242 | D71: 黎平县 | E71: 小学 | F71: 语文 | G71: 70.50 | H71: 50% | I71: 86.67 | J71: 50% | K71: 78.59 | L71: 33 | M71: 否
A72: 69 | B72: 伍圆圆 | C72: 2024312020222 | D72: 黎平县 | E72: 小学 | F72: 语文 | G72: 75.00 | H72: 50% | I72: 82.00 | J72: 50% | K72: 78.50 | L72: 34 | M72: 否
A73: 70 | B73: 吴陆瑶 | C73: 2024312020233 | D73: 黎平县 | E73: 小学 | F73: 语文 | G73: 73.00 | H73: 50% | I73: 84.00 | J73: 50% | K73: 78.50 | L73: 34 | M73: 否
A74: 71 | B74: 杨庆兰 | C74: 2024312020246 | D74: 黎平县 | E74: 小学 | F74: 语文 | G74: 70.00 | H74: 50% | I74: 86.67 | J74: 50% | K74: 78.34 | L74: 36 | M74: 否
A75: 72 | B75: 吴媛媛 | C75: 2024312020236 | D75: 黎平县 | E75: 小学 | F75: 语文 | G75: 72.50 | H75: 50% | I75: 83.33 | J75: 50% | K75: 77.92 | L75: 37 | M75: 否
A76: 73 | B76: 伍鑫满 | C76: 2024312020228 | D76: 黎平县 | E76: 小学 | F76: 语文 | G76: 74.00 | H76: 50% | I76: 81.33 | J76: 50% | K76: 77.67 | L76: 38 | M76: 否
A77: 74 | B77: 王丛佩 | C77: 2024312020240 | D77: 黎平县 | E77: 小学 | F77: 语文 | G77: 71.00 | H77: 50% | I77: 83.67 | J77: 50% | K77: 77.34 | L77: 39 | M77: 否
A78: 75 | B78: 孟维丽 | C78: 2024312020245 | D78: 黎平县 | E78: 小学 | F78: 语文 | G78: 70.50 | H78: 50% | I78: 83.33 | J78: 50% | K78: 76.92 | L78: 40 | M78: 否
A79: 76 | B79: 马关龙 | C79: 2024312020244 | D79: 黎平县 | E79: 小学 | F79: 语文 | G79: 70.50 | H79: 50% | I79: 83.00 | J79: 50% | K79: 76.75 | L79: 41 | M79: 否
A80: 77 | B80: 龙景桧 | C80: 2024312020248 | D80: 黎平县 | E80: 小学 | F80: 语文 | G80: 70.00 | H80: 50% | I80: 81.33 | J80: 50% | K80: 75.67 | L80: 42 | M80: 否
A81: 78 | B81: 王红念 | C81: 2024312020226 | D81: 黎平县 | E81: 小学 | F81: 语文 | G81: 74.00 | H81: 50% | I81: 0.00 | J81: 50% | K81: 37.00 | L81: 43 | M81: 否
A82: 79 | B82: 吴罗兴 | C82: 2024312020227 | D82: 黎平县 | E82: 小学 | F82: 语文 | G82: 74.00 | H82: 50% | I82: 0.00 | J82: 50% | K82: 37.00 | L82: 43 | M82: 否
A83: 80 | B83: 蒋环英 | C83: 2024312020234 | D83: 黎平县 | E83: 小学 | F83: 语文 | G83: 73.00 | H83: 50% | I83: 0.00 | J83: 50% | K83: 36.50 | L83: 45 | M83: 否
A84: 81 | B84: 谌艳慧 | C84: 2024312020237 | D84: 黎平县 | E84: 小学 | F84: 语文 | G84: 72.00 | H84: 50% | I84: 0.00 | J84: 50% | K84: 36.00 | L84: 46 | M84: 否
A85: 82 | B85: 石庆杰 | C85: 2024312020241 | D85: 黎平县 | E85: 小学 | F85: 语文 | G85: 70.50 | H85: 50% | I85: 0.00 | J85: 50% | K85: 35.25 | L85: 47 | M85: 否
A86: 83 | B86: 李佳昕 | C86: 2024312020247 | D86: 黎平县 | E86: 小学 | F86: 语文 | G86: 70.00 | H86: 50% | I86: 0.00 | J86: 50% | K86: 35.00 | L86: 48 | M86: 否
A87: 84 | B87: 陆吉 | C87: 2024313030301 | D87: 黎平县 | E87: 初中 | F87: 数学 | G87: 79.50 | H87: 50% | I87: 79.33 | J87: 50% | K87: 79.42 | L87: 1 | M87: 是
A88: 85 | B88: 唐平财 | C88: 2024313030302 | D88: 黎平县 | E88: 初中 | F88: 数学 | G88: 77.00 | H88: 50% | I88: 80.33 | J88: 50% | K88: 78.67 | L88: 2 | M88: 是
A89: 86 | B89: 王程文 | C89: 2024313030305 | D89: 黎平县 | E89: 初中 | F89: 数学 | G89: 67.50 | H89: 50% | I89: 88.33 | J89: 50% | K89: 77.92 | L89: 3 | M89: 是
A90: 87 | B90: 吕严寒 | C90: 2024313030303 | D90: 黎平县 | E90: 初中 | F90: 数学 | G90: 71.50 | H90: 50% | I90: 84.00 | J90: 50% | K90: 77.75 | L90: 4 | M90: 是
A91: 88 | B91: 石县交 | C91: 2024313030304 | D91: 黎平县 | E91: 初中 | F91: 数学 | G91: 68.50 | H91: 50% | I91: 84.00 | J91: 50% | K91: 76.25 | L91: 5 | M91: 是
A92: 89 | B92: 刘承枫 | C92: 2024313030306 | D92: 黎平县 | E92: 初中 | F92: 数学 | G92: 62.50 | H92: 50% | I92: 84.00 | J92: 50% | K92: 73.25 | L92: 6 | M92: 是
A93: 90 | B93: 胡飞 | C93: 2024313030307 | D93: 黎平县 | E93: 初中 | F93: 数学 | G93: 57.00 | H93: 50% | I93: 87.67 | J93: 50% | K93: 72.34 | L93: 7 | M93: 是
A94: 91 | B94: 石孟婷 | C94: 2024313030309 | D94: 黎平县 | E94: 初中 | F94: 数学 | G94: 55.00 | H94: 50% | I94: 86.33 | J94: 50% | K94: 70.67 | L94: 8 | M94: 是
A95: 92 | B95: 张先 | C95: 2024313030311 | D95: 黎平县 | E95: 初中 | F95: 数学 | G95: 53.00 | H95: 50% | I95: 84.00 | J95: 50% | K95: 68.50 | L95: 9 | M95: 否
A96: 93 | B96: 杨熳 | C96: 2024313030315 | D96: 黎平县 | E96: 初中 | F96: 数学 | G96: 49.00 | H96: 50% | I96: 85.00 | J96: 50% | K96: 67.00 | L96: 10 | M96: 否
A97: 94 | B97: 杨雷 | C97: 2024313030313 | D97: 黎平县 | E97: 初中 | F97: 数学 | G97: 49.50 | H97: 50% | I97: 70.00 | J97: 50% | K97: 59.75 | L97: 11 | M97: 否
A98: 95 | B98: 唐超 | C98: 2024313030308 | D98: 黎平县 | E98: 初中 | F98: 数学 | G98: 56.50 | H98: 50% | I98: 面试缺考 | J98: —— | K98: —— | M98: 否
A99: 96 | B99: 吴真情 | C99: 2024313030310 | D99: 黎平县 | E99: 初中 | F99: 数学 | G99: 54.00 | H99: 50% | I99: 面试缺考 | J99: —— | K99: —— | M99: 否
A100: 97 | B100: 吴金平 | C100: 2024313030312 | D100: 黎平县 | E100: 初中 | F100: 数学 | G100: 49.50 | H100: 50% | I100: 面试缺考 | J100: —— | K100: —— | M100: 否
A101: 98 | B101: 毛念 | C101: 2024313030314 | D101: 黎平县 | E101: 初中 | F101: 数学 | G101: 49.00 | H101: 50% | I101: 面试缺考 | J101: —— | K101: —— | M101: 否
A102: 99 | B102: 皮建庚 | C102: 2024313030316 | D102: 黎平县 | E102: 初中 | F102: 数学 | G102: 48.00 | H102: 50% | I102: 面试缺考 | J102: —— | K102: —— | M102: 否
A103: 100 | B103: 勾秋雨 | C103: 2024313030317 | D103: 黎平县 | E103: 初中 | F103: 数学 | G103: 46.00 | H103: 50% | I103: 面试缺考 | J103: —— | K103: —— | M103: 否
A104: 101 | B104: 曾芳 | C104: 2024312110318 | D104: 黎平县 | E104: 小学 | F104: 信息科技 | G104: 76.00 | H104: 50% | I104: 87.33 | J104: 50% | K104: =ROUND(G104/2+I104/2,2) -> 81.67 | L104: 1 | M104: 是
A105: 102 | B105: 杨俊 | C105: 2024312110320 | D105: 黎平县 | E105: 小学 | F105: 信息科技 | G105: 74.00 | H105: 50% | I105: 88.00 | J105: 50% | K105: 81.00 | L105: 2 | M105: 是
A106: 103 | B106: 杨翔 | C106: 2024312110324 | D106: 黎平县 | E106: 小学 | F106: 信息科技 | G106: 70.50 | H106: 50% | I106: 90.00 | J106: 50% | K106: 80.25 | L106: 3 | M106: 是
A107: 104 | B107: 潘归成 | C107: 2024312110321 | D107: 黎平县 | E107: 小学 | F107: 信息科技 | G107: 72.50 | H107: 50% | I107: 87.83 | J107: 50% | K107: 80.17 | L107: 4 | M107: 是
A108: 105 | B108: 欧成露 | C108: 2024312110323 | D108: 黎平县 | E108: 小学 | F108: 信息科技 | G108: 71.50 | H108: 50% | I108: 88.67 | J108: 50% | K108: 80.09 | L108: 5 | M108: 否
A109: 106 | B109: 毛清 | C109: 2024312110328 | D109: 黎平县 | E109: 小学 | F109: 信息科技 | G109: 68.00 | H109: 50% | I109: 91.67 | J109: 50% | K109: 79.84 | L109: 6 | M109: 否
A110: 107 | B110: 杨昌柳 | C110: 2024312110326 | D110: 黎平县 | E110: 小学 | F110: 信息科技 | G110: 69.50 | H110: 50% | I110: 90.00 | J110: 50% | K110: 79.75 | L110: 7 | M110: 否
A111: 108 | B111: 李光念 | C111: 2024312110319 | D111: 黎平县 | E111: 小学 | F111: 信息科技 | G111: 74.00 | H111: 50% | I111: 85.00 | J111: 50% | K111: 79.50 | L111: 8 | M111: 否
A112: 109 | B112: 杨秋妺 | C112: 2024312110325 | D112: 黎平县 | E112: 小学 | F112: 信息科技 | G112: 70.00 | H112: 50% | I112: 88.00 | J112: 50% | K112: 79.00 | L112: 9 | M112: 否
A113: 110 | B113: 吴宏扬 | C113: 2024312110322 | D113: 黎平县 | E113: 小学 | F113: 信息科技 | G113: 72.50 | H113: 50% | I113: 85.00 | J113: 50% | K113: 78.75 | L113: 10 | M113: 否
A114: 111 | B114: 李进英 | C114: 2024312110330 | D114: 黎平县 | E114: 小学 | F114: 信息科技 | G114: 68.00 | H114: 50% | I114: 88.00 | J114: 50% | K114: 78.00 | L114: 11 | M114: 否
A115: 112 | B115: 李林娇 | C115: 2024312110327 | D115: 黎平县 | E115: 小学 | F115: 信息科技 | G115: 68.50 | H115: 50% | I115: 87.00 | J115: 50% | K115: 77.75 | L115: 12 | M115: 否
A116: 113 | B116: 张苏婷 | C116: 2024312110329 | D116: 黎平县 | E116: 小学 | F116: 信息科技 | G116: 68.00 | H116: 50% | I116: 86.00 | J116: 50% | K116: 77.00 | L116: 13 | M116: 否
A117: 114 | B117: 王建军 | C117: 2024312030401 | D117: 黎平县 | E117: 小学 | F117: 数学 | G117: 91.50 | H117: 50% | I117: 86.67 | J117: 50% | K117: 89.09 | L117: 1 | M117: 是
A118: 115 | B118: 韩里 | C118: 2024312030402 | D118: 黎平县 | E118: 小学 | F118: 数学 | G118: 87.50 | H118: 50% | I118: 80.33 | J118: 50% | K118: 83.92 | L118: 2 | M118: 是
A119: 116 | B119: 尹紫瑞 | C119: 2024312030405 | D119: 黎平县 | E119: 小学 | F119: 数学 | G119: 79.50 | H119: 50% | I119: 85.33 | J119: 50% | K119: 82.42 | L119: 3 | M119: 是
A120: 117 | B120: 康海洋 | C120: 2024312030403 | D120: 黎平县 | E120: 小学 | F120: 数学 | G120: 81.00 | H120: 50% | I120: 83.00 | J120: 50% | K120: 82.00 | L120: 4 | M120: 是
A121: 118 | B121: 何儒星 | C121: 2024312030404 | D121: 黎平县 | E121: 小学 | F121: 数学 | G121: 80.50 | H121: 50% | I121: 80.67 | J121: 50% | K121: 80.59 | L121: 5 | M121: 是
A122: 119 | B122: 唐金富 | C122: 2024312030406 | D122: 黎平县 | E122: 小学 | F122: 数学 | G122: 75.00 | H122: 50% | I122: 82.67 | J122: 50% | K122: 78.84 | L122: 6 | M122: 是
A123: 120 | B123: 骆书琴 | C123: 2024312030407 | D123: 黎平县 | E123: 小学 | F123: 数学 | G123: 71.50 | H123: 50% | I123: 85.33 | J123: 50% | K123: 78.42 | L123: 7 | M123: 是
A124: 121 | B124: 向开林 | C124: 2024312030408 | D124: 黎平县 | E124: 小学 | F124: 数学 | G124: 66.50 | H124: 50% | I124: 84.00 | J124: 50% | K124: 75.25 | L124: 8 | M124: 是
A125: 122 | B125: 苏维亮 | C125: 2024312030409 | D125: 黎平县 | E125: 小学 | F125: 数学 | G125: 65.50 | H125: 50% | I125: 85.00 | J125: 50% | K125: 75.25 | L125: 8 | M125: 是
A126: 123 | B126: 刘盛春 | C126: 2024312030410 | D126: 黎平县 | E126: 小学 | F126: 数学 | G126: 64.50 | H126: 50% | I126: 83.33 | J126: 50% | K126: 73.92 | L126: 10 | M126: 是
A127: 124 | B127: 黎亚琴 | C127: 2024312030412 | D127: 黎平县 | E127: 小学 | F127: 数学 | G127: 62.50 | H127: 50% | I127: 83.33 | J127: 50% | K127: 72.92 | L127: 11 | M127: 是
A128: 125 | B128: 杨小冰 | C128: 2024312030414 | D128: 黎平县 | E128: 小学 | F128: 数学 | G128: 61.00 | H128: 50% | I128: 84.33 | J128: 50% | K128: 72.67 | L128: 12 | M128: 是
A129: 126 | B129: 韩军 | C129: 2024312030411 | D129: 黎平县 | E129: 小学 | F129: 数学 | G129: 62.50 | H129: 50% | I129: 82.67 | J129: 50% | K129: 72.59 | L129: 13 | M129: 是
A130: 127 | B130: 吴子连 | C130: 2024312030418 | D130: 黎平县 | E130: 小学 | F130: 数学 | G130: 59.00 | H130: 50% | I130: 84.67 | J130: 50% | K130: 71.84 | L130: 14 | M130: 是
A131: 128 | B131: 杨世花 | C131: 2024312030420 | D131: 黎平县 | E131: 小学 | F131: 数学 | G131: 58.50 | H131: 50% | I131: 83.33 | J131: 50% | K131: 70.92 | L131: 15 | M131: 是
A132: 129 | B132: 刘思君 | C132: 2024312030432 | D132: 黎平县 | E132: 小学 | F132: 数学 | G132: 54.50 | H132: 50% | I132: 86.67 | J132: 50% | K132: 70.59 | L132: 16 | M132: 是
A133: 130 | B133: 袁琼 | C133: 2024312030416 | D133: 黎平县 | E133: 小学 | F133: 数学 | G133: 60.00 | H133: 50% | I133: 80.33 | J133: 50% | K133: 70.17 | L133: 17 | M133: 是
A134: 131 | B134: 万政英 | C134: 2024312030422 | D134: 黎平县 | E134: 小学 | F134: 数学 | G134: 58.00 | H134: 50% | I134: 82.33 | J134: 50% | K134: 70.17 | L134: 17 | M134: 否
A135: 132 | B135: 杨芳芳 | C135: 2024312030427 | D135: 黎平县 | E135: 小学 | F135: 数学 | G135: 56.00 | H135: 50% | I135: 84.33 | J135: 50% | K135: 70.17 | L135: 17 | M135: 否
A136: 133 | B136: 吴清媛 | C136: 2024312030424 | D136: 黎平县 | E136: 小学 | F136: 数学 | G136: 57.50 | H136: 50% | I136: 82.67 | J136: 50% | K136: 70.09 | L136: 20 | M136: 否
A137: 134 | B137: 秦诗意 | C137: 2024312030429 | D137: 黎平县 | E137: 小学 | F137: 数学 | G137: 56.00 | H137: 50% | I137: 83.67 | J137: 50% | K137: 69.84 | L137: 21 | M137: 否
A138: 135 | B138: 陈文蝶 | C138: 2024312030413 | D138: 黎平县 | E138: 小学 | F138: 数学 | G138: 61.00 | H138: 50% | I138: 78.33 | J138: 50% | K138: 69.67 | L138: 22 | M138: 否
A139: 136 | B139: 姚绍群 | C139: 2024312030419 | D139: 黎平县 | E139: 小学 | F139: 数学 | G139: 59.00 | H139: 50% | I139: 79.67 | J139: 50% | K139: 69.34 | L139: 23 | M139: 否
A140: 137 | B140: 杨发银 | C140: 2024312030423 | D140: 黎平县 | E140: 小学 | F140: 数学 | G140: 57.50 | H140: 50% | I140: 81.00 | J140: 50% | K140: 69.25 | L140: 24 | M140: 否
A141: 138 | B141: 杨通彩 | C141: 2024312030421 | D141: 黎平县 | E141: 小学 | F141: 数学 | G141: 58.50 | H141: 50% | I141: 79.33 | J141: 50% | K141: 68.92 | L141: 25 | M141: 否
A142: 139 | B142: 蔡洁 | C142: 2024312030417 | D142: 黎平县 | E142: 小学 | F142: 数学 | G142: 59.50 | H142: 50% | I142: 77.33 | J142: 50% | K142: 68.42 | L142: 26 | M142: 否
A143: 140 | B143: 石温红 | C143: 2024312030430 | D143: 黎平县 | E143: 小学 | F143: 数学 | G143: 55.50 | H143: 50% | I143: 81.00 | J143: 50% | K143: 68.25 | L143: 27 | M143: 否
A144: 141 | B144: 扶琴 | C144: 2024312030435 | D144: 黎平县 | E144: 小学 | F144: 数学 | G144: 53.00 | H144: 50% | I144: 83.33 | J144: 50% | K144: 68.17 | L144: 28 | M144: 否
A145: 142 | B145: 鲁永航 | C145: 2024312030426 | D145: 黎平县 | E145: 小学 | F145: 数学 | G145: 56.50 | H145: 50% | I145: 79.00 | J145: 50% | K145: 67.75 | L145: 29 | M145: 否
A146: 143 | B146: 漆诚杰 | C146: 2024312030443 | D146: 黎平县 | E146: 小学 | F146: 数学 | G146: 49.00 | H146: 50% | I146: 86.00 | J146: 50% | K146: 67.50 | L146: 30 | M146: 否
A147: 144 | B147: 张兴 | C147: 2024312030425 | D147: 黎平县 | E147: 小学 | F147: 数学 | G147: 56.50 | H147: 50% | I147: 78.33 | J147: 50% | K147: 67.42 | L147: 31 | M147: 否
A148: 145 | B148: 张红梅 | C148: 2024312030433 | D148: 黎平县 | E148: 小学 | F148: 数学 | G148: 54.00 | H148: 50% | I148: 80.33 | J148: 50% | K148: 67.17 | L148: 32 | M148: 否
A149: 146 | B149: 熊小楠 | C149: 2024312030431 | D149: 黎平县 | E149: 小学 | F149: 数学 | G149: 55.00 | H149: 50% | I149: 78.67 | J149: 50% | K149: 66.84 | L149: 33 | M149: 否
A150: 147 | B150: 杨婷 | C150: 2024312030437 | D150: 黎平县 | E150: 小学 | F150: 数学 | G150: 52.00 | H150: 50% | I150: 81.67 | J150: 50% | K150: 66.84 | L150: 33 | M150: 否
A151: 148 | B151: 何海燕 | C151: 2024312030436 | D151: 黎平县 | E151: 小学 | F151: 数学 | G151: 52.50 | H151: 50% | I151: 80.33 | J151: 50% | K151: 66.42 | L151: 35 | M151: 否
A152: 149 | B152: 邹吉 | C152: 2024312030434 | D152: 黎平县 | E152: 小学 | F152: 数学 | G152: 53.00 | H152: 50% | I152: 79.33 | J152: 50% | K152: 66.17 | L152: 36 | M152: 否
A153: 150 | B153: 罗衍 | C153: 2024312030440 | D153: 黎平县 | E153: 小学 | F153: 数学 | G153: 51.00 | H153: 50% | I153: 78.00 | J153: 50% | K153: 64.50 | L153: 37 | M153: 否
A154: 151 | B154: 周平燕 | C154: 2024312030441 | D154: 黎平县 | E154: 小学 | F154: 数学 | G154: 49.50 | H154: 50% | I154: 78.00 | J154: 50% | K154: 63.75 | L154: 38 | M154: 否
A155: 152 | B155: 陆姝丽 | C155: 2024312030445 | D155: 黎平县 | E155: 小学 | F155: 数学 | G155: 47.50 | H155: 50% | I155: 80.00 | J155: 50% | K155: 63.75 | L155: 38 | M155: 否
A156: 153 | B156: 胡先明 | C156: 2024312030451 | D156: 黎平县 | E156: 小学 | F156: 数学 | G156: 46.00 | H156: 50% | I156: 79.00 | J156: 50% | K156: 62.50 | L156: 40 | M156: 否
A157: 154 | B157: 庹忠素 | C157: 2024312030450 | D157: 黎平县 | E157: 小学 | F157: 数学 | G157: 46.00 | H157: 50% | I157: 78.67 | J157: 50% | K157: 62.34 | L157: 41 | M157: 否
A158: 155 | B158: 彭玉林 | C158: 2024312030415 | D158: 黎平县 | E158: 小学 | F158: 数学 | G158: 61.00 | H158: 50% | I158: 面试缺考 | J158: —— | K158: —— | M158: 否
A159: 156 | B159: 刘咏琦 | C159: 2024312030428 | D159: 黎平县 | E159: 小学 | F159: 数学 | G159: 56.00 | H159: 50% | I159: 面试缺考 | J159: —— | K159: —— | M159: 否
A160: 157 | B160: 彭晓娜 | C160: 2024312030438 | D160: 黎平县 | E160: 小学 | F160: 数学 | G160: 52.00 | H160: 50% | I160: 面试缺考 | J160: —— | K160: —— | M160: 否
A161: 158 | B161: 阮娜 | C161: 2024312030439 | D161: 黎平县 | E161: 小学 | F161: 数学 | G161: 51.00 | H161: 50% | I161: 面试缺考 | J161: —— | K161: —— | M161: 否
A162: 159 | B162: 杨武芝 | C162: 2024312030442 | D162: 黎平县 | E162: 小学 | F162: 数学 | G162: 49.00 | H162: 50% | I162: 面试缺考 | J162: —— | K162: —— | M162: 否
A163: 160 | B163: 农学丽 | C163: 2024312030444 | D163: 黎平县 | E163: 小学 | F163: 数学 | G163: 48.50 | H163: 50% | I163: 面试缺考 | J163: —— | K163: —— | M163: 否
A164: 161 | B164: 张聪聪 | C164: 2024312030446 | D164: 黎平县 | E164: 小学 | F164: 数学 | G164: 47.50 | H164: 50% | I164: 面试缺考 | J164: —— | K164: —— | M164: 否
A165: 162 | B165: 吴金秋 | C165: 2024312030447 | D165: 黎平县 | E165: 小学 | F165: 数学 | G165: 47.50 | H165: 50% | I165: 面试缺考 | J165: —— | K165: —— | M165: 否
A166: 163 | B166: 付正飞 | C166: 2024312030448 | D166: 黎平县 | E166: 小学 | F166: 数学 | G166: 47.50 | H166: 50% | I166: 面试缺考 | J166: —— | K166: —— | M166: 否
A167: 164 | B167: 廖凤娟 | C167: 2024312030449 | D167: 黎平县 | E167: 小学 | F167: 数学 | G167: 47.50 | H167: 50% | I167: 面试缺考 | J167: —— | K167: —— | M167: 否
A168: 165 | B168: 杨婷婷 | C168: 2024313040501 | D168: 黎平县 | E168: 初中 | F168: 英语 | G168: 87.00 | H168: 50% | I168: 87.00 | J168: 50% | K168: =ROUND(G168/2+I168/2,2) -> 87.00 | L168: 1 | M168: 是
A169: 166 | B169: 肖雨欣 | C169: 2024313040503 | D169: 黎平县 | E169: 初中 | F169: 英语 | G169: 85.00 | H169: 50% | I169: 86.50 | J169: 50% | K169: 85.75 | L169: 2 | M169: 是
A170: 167 | B170: 李楠 | C170: 2024313040512 | D170: 黎平县 | E170: 初中 | F170: 英语 | G170: 81.50 | H170: 50% | I170: 89.00 | J170: 50% | K170: 85.25 | L170: 3 | M170: 是
A171: 168 | B171: 陈桂钗 | C171: 2024313040505 | D171: 黎平县 | E171: 初中 | F171: 英语 | G171: 84.00 | H171: 50% | I171: 86.33 | J171: 50% | K171: 85.17 | L171: 4 | M171: 是
A172: 169 | B172: 胡开梅 | C172: 2024313040506 | D172: 黎平县 | E172: 初中 | F172: 英语 | G172: 84.00 | H172: 50% | I172: 85.00 | J172: 50% | K172: 84.50 | L172: 5 | M172: 是
A173: 170 | B173: 袁满玲 | C173: 2024313040515 | D173: 黎平县 | E173: 初中 | F173: 英语 | G173: 81.00 | H173: 50% | I173: 88.00 | J173: 50% | K173: 84.50 | L173: 5 | M173: 是
A174: 171 | B174: 洪云 | C174: 2024313040511 | D174: 黎平县 | E174: 初中 | F174: 英语 | G174: 82.00 | H174: 50% | I174: 86.83 | J174: 50% | K174: 84.42 | L174: 7 | M174: 是
A175: 172 | B175: 赵颖 | C175: 2024313040513 | D175: 黎平县 | E175: 初中 | F175: 英语 | G175: 81.50 | H175: 50% | I175: 87.33 | J175: 50% | K175: 84.42 | L175: 7 | M175: 是
A176: 173 | B176: 杨钰丹 | C176: 2024313040508 | D176: 黎平县 | E176: 初中 | F176: 英语 | G176: 83.50 | H176: 50% | I176: 84.33 | J176: 50% | K176: 83.92 | L176: 9 | M176: 是
A177: 174 | B177: 谭诚 | C177: 2024313040502 | D177: 黎平县 | E177: 初中 | F177: 英语 | G177: 86.50 | H177: 50% | I177: 81.00 | J177: 50% | K177: 83.75 | L177: 10 | M177: 是
A178: 175 | B178: 周前丽 | C178: 2024313040520 | D178: 黎平县 | E178: 初中 | F178: 英语 | G178: 80.00 | H178: 50% | I178: 87.50 | J178: 50% | K178: 83.75 | L178: 10 | M178: 是
A179: 176 | B179: 杨巧 | C179: 2024313040516 | D179: 黎平县 | E179: 初中 | F179: 英语 | G179: 81.00 | H179: 50% | I179: 86.17 | J179: 50% | K179: 83.59 | L179: 12 | M179: 是
A180: 177 | B180: 覃珍 | C180: 2024313040510 | D180: 黎平县 | E180: 初中 | F180: 英语 | G180: 83.00 | H180: 50% | I180: 84.17 | J180: 50% | K180: 83.59 | L180: 12 | M180: 否
A181: 178 | B181: 吴贞润 | C181: 2024313040522 | D181: 黎平县 | E181: 初中 | F181: 英语 | G181: 80.00 | H181: 50% | I181: 85.83 | J181: 50% | K181: 82.92 | L181: 14 | M181: 否
A182: 179 | B182: 陈豪雁 | C182: 2024313040504 | D182: 黎平县 | E182: 初中 | F182: 英语 | G182: 85.00 | H182: 50% | I182: 80.67 | J182: 50% | K182: 82.84 | L182: 15 | M182: 否
A183: 180 | B183: 黄晓春 | C183: 2024313040507 | D183: 黎平县 | E183: 初中 | F183: 英语 | G183: 84.00 | H183: 50% | I183: 81.33 | J183: 50% | K183: 82.67 | L183: 16 | M183: 否
A184: 181 | B184: 刘淑珠 | C184: 2024313040519 | D184: 黎平县 | E184: 初中 | F184: 英语 | G184: 80.00 | H184: 50% | I184: 84.83 | J184: 50% | K184: 82.42 | L184: 17 | M184: 否
A185: 182 | B185: 胡焱锌 | C185: 2024313040524 | D185: 黎平县 | E185: 初中 | F185: 英语 | G185: 79.50 | H185: 50% | I185: 84.67 | J185: 50% | K185: 82.09 | L185: 18 | M185: 否
A186: 183 | B186: 张孝赞 | C186: 2024313040528 | D186: 黎平县 | E186: 初中 | F186: 英语 | G186: 77.00 | H186: 50% | I186: 87.17 | J186: 50% | K186: 82.09 | L186: 18 | M186: 否
A187: 184 | B187: 杨婷 | C187: 2024313040518 | D187: 黎平县 | E187: 初中 | F187: 英语 | G187: 80.50 | H187: 50% | I187: 83.33 | J187: 50% | K187: 81.92 | L187: 20 | M187: 否
A188: 185 | B188: 王敏 | C188: 2024313040521 | D188: 黎平县 | E188: 初中 | F188: 英语 | G188: 80.00 | H188: 50% | I188: 83.67 | J188: 50% | K188: 81.84 | L188: 21 | M188: 否
A189: 186 | B189: 黄垚 | C189: 2024313040532 | D189: 黎平县 | E189: 初中 | F189: 英语 | G189: 76.50 | H189: 50% | I189: 87.00 | J189: 50% | K189: 81.75 | L189: 22 | M189: 否
A190: 187 | B190: 邓生玉 | C190: 2024313040517 | D190: 黎平县 | E190: 初中 | F190: 英语 | G190: 81.00 | H190: 50% | I190: 82.33 | J190: 50% | K190: 81.67 | L190: 23 | M190: 否
A191: 188 | B191: 鲁琴 | C191: 2024313040525 | D191: 黎平县 | E191: 初中 | F191: 英语 | G191: 79.00 | H191: 50% | I191: 84.33 | J191: 50% | K191: 81.67 | L191: 23 | M191: 否
A192: 189 | B192: 杨荔 | C192: 2024313040509 | D192: 黎平县 | E192: 初中 | F192: 英语 | G192: 83.50 | H192: 50% | I192: 79.67 | J192: 50% | K192: 81.59 | L192: 25 | M192: 否
A193: 190 | B193: 王琼艳 | C193: 2024313040514 | D193: 黎平县 | E193: 初中 | F193: 英语 | G193: 81.50 | H193: 50% | I193: 81.33 | J193: 50% | K193: 81.42 | L193: 26 | M193: 否
A194: 191 | B194: 杨成兰 | C194: 2024313040526 | D194: 黎平县 | E194: 初中 | F194: 英语 | G194: 78.00 | H194: 50% | I194: 84.50 | J194: 50% | K194: 81.25 | L194: 27 | M194: 否
A195: 192 | B195: 王小菊 | C195: 2024313040534 | D195: 黎平县 | E195: 初中 | F195: 英语 | G195: 76.00 | H195: 50% | I195: 86.33 | J195: 50% | K195: 81.17 | L195: 28 | M195: 否
A196: 193 | B196: 吴佳馨 | C196: 2024313040531 | D196: 黎平县 | E196: 初中 | F196: 英语 | G196: 76.50 | H196: 50% | I196: 85.67 | J196: 50% | K196: 81.09 | L196: 29 | M196: 否
A197: 194 | B197: 池惠美 | C197: 2024313040537 | D197: 黎平县 | E197: 初中 | F197: 英语 | G197: 75.00 | H197: 50% | I197: 86.67 | J197: 50% | K197: 80.84 | L197: 30 | M197: 否
A198: 195 | B198: 周欣 | C198: 2024313040523 | D198: 黎平县 | E198: 初中 | F198: 英语 | G198: 79.50 | H198: 50% | I198: 81.67 | J198: 50% | K198: 80.59 | L198: 31 | M198: 否
A199: 196 | B199: 鄢漩冰 | C199: 2024313040529 | D199: 黎平县 | E199: 初中 | F199: 英语 | G199: 77.00 | H199: 50% | I199: 84.00 | J199: 50% | K199: 80.50 | L199: 32 | M199: 否
A200: 197 | B200: 车德英 | C200: 2024313040535 | D200: 黎平县 | E200: 初中 | F200: 英语 | G200: 76.00 | H200: 50% | I200: 83.67 | J200: 50% | K200: 79.84 | L200: 33 | M200: 否
... 164 more rows
